[Event "*** Titled Tuesday Blitz"]
[Site "Chess.com"]
[Date "2020.10.20"]
[Round "4"]
[White "TheBigBoss04"]
[Black "Jospem"]
[Result "0-1"]
[WhiteElo "2734"]
[BlackElo "2955"]
[TimeControl "180+1"]
[EndTime "10:41:55 PDT"]
[Termination "Jospem won on time"]

1. d4 {[%clk 0:03:00.9]} 1... Nf6 {[%clk 0:03:00.2]} 2. c4 {[%clk 0:03:00.1]}
2... e6 {[%clk 0:03:00.6]} 3. Nf3 {[%clk 0:03:00.5]} 3... Bb4+ {[%clk
0:02:59.8]} 4. Bd2 {[%clk 0:02:58]} 4... c5 {[%clk 0:02:59.7]} 5. g3 {[%clk
0:02:48.8]} 5... b6 {[%clk 0:02:59.6]} 6. Bg2 {[%clk 0:02:48.2]} 6... Bb7 {[%clk
0:03:00]} 7. O-O {[%clk 0:02:48]} 7... O-O {[%clk 0:02:59.9]} 8. Bg5 {[%clk
0:02:47.7]} 8... cxd4 {[%clk 0:02:59.4]} 9. Qxd4 {[%clk 0:02:28.8]} 9... Nc6
{[%clk 0:02:20.4]} 10. Qd3 {[%clk 0:02:27.3]} 10... h6 {[%clk 0:02:15.7]} 11.
Bf4 {[%clk 0:02:05.8]} 11... d5 {[%clk 0:02:10.5]} 12. a3 {[%clk 0:02:04.8]}
12... Be7 {[%clk 0:02:06.3]} 13. Ne5 {[%clk 0:01:59.9]} 13... Nxe5 {[%clk
0:01:42.8]} 14. Bxe5 {[%clk 0:02:00.8]} 14... Ba6 {[%clk 0:01:41.8]} 15. Nd2
{[%clk 0:01:50.8]} 15... Rc8 {[%clk 0:01:40.1]} 16. Rfd1 {[%clk 0:01:12.2]}
16... Nd7 {[%clk 0:01:09.7]} 17. Bc3 {[%clk 0:00:44.6]} 17... Bf6 {[%clk
0:01:10]} 18. Rac1 {[%clk 0:00:27.3]} 18... Nc5 {[%clk 0:01:00.4]} 19. Qc2
{[%clk 0:00:26.8]} 19... Bxc3 {[%clk 0:00:39.4]} 20. Qxc3 {[%clk 0:00:26.4]}
20... d4 {[%clk 0:00:39.7]} 21. Qc2 {[%clk 0:00:26.3]} 21... e5 {[%clk
0:00:39.3]} 22. b4 {[%clk 0:00:26.4]} 22... d3 {[%clk 0:00:10.6]} 23. exd3
{[%clk 0:00:25.9]} 23... Nxd3 {[%clk 0:00:11.5]} 24. Rb1 {[%clk 0:00:21.5]}
24... Rc7 {[%clk 0:00:05.4]} 25. Bf1 {[%clk 0:00:17.6]} 25... Nxf2 {[%clk
0:00:02]} 26. Kxf2 {[%clk 0:00:16.6]} 26... Qd4+ {[%clk 0:00:02.6]} 27. Ke2
{[%clk 0:00:10.4]} 27... Bb7 {[%clk 0:00:02.2]} 28. Nf3 {[%clk 0:00:07.6]} 28...
Qg4 {[%clk 0:00:02.3]} 29. Qc3 {[%clk 0:00:05.7]} 29... e4 {[%clk 0:00:02.6]}
30. Kf2 {[%clk 0:00:04.4]} 30... exf3 {[%clk 0:00:01.9]} 31. Rd4 {[%clk
0:00:04.6]} 31... Qc8 {[%clk 0:00:02.6]} 32. Rbd1 {[%clk 0:00:03.7]} 32... Re7
{[%clk 0:00:03.2]} 33. R4d2 {[%clk 0:00:03.4]} 33... Rfe8 {[%clk 0:00:03.7]} 34.
c5 {[%clk 0:00:03.9]} 34... bxc5 {[%clk 0:00:03.6]} 35. bxc5 {[%clk 0:00:04.8]}
35... Rc7 {[%clk 0:00:04.3]} 36. Rc2 {[%clk 0:00:03.2]} 36... Bc6 {[%clk
0:00:03.8]} 37. Rdc1 {[%clk 0:00:03.6]} 37... Ba4 {[%clk 0:00:04.1]} 38. Rd2
{[%clk 0:00:03.3]} 38... Bc6 {[%clk 0:00:04.8]} 39. Qd4 {[%clk 0:00:03.2]} 39...
Rd7 {[%clk 0:00:04.6]} 40. Qc3 {[%clk 0:00:03.8]} 40... Rxd2+ {[%clk 0:00:04.8]}
41. Qxd2 {[%clk 0:00:04.7]} 41... Qb8 {[%clk 0:00:04]} 42. Rc3 {[%clk
0:00:03.3]} 42... Rd8 {[%clk 0:00:04]} 43. Qe3 {[%clk 0:00:03.1]} 43... Qb2+
{[%clk 0:00:03.3]} 44. Kg1 {[%clk 0:00:02.4]} 44... f2+ {[%clk 0:00:04]} 45.
Qxf2 {[%clk 0:00:02.6]} 45... Qxc3 {[%clk 0:00:04.7]} 0-1

[Event "*** Titled Tuesday Blitz"]
[Site "Chess.com"]
[Date "2020.10.20"]
[Round "4"]
[White "W_Amadeus"]
[Black "Ziachess74"]
[Result "1-0"]
[WhiteElo "2724"]
[BlackElo "2484"]
[TimeControl "180+1"]
[EndTime "10:41:55 PDT"]
[Termination "W_Amadeus won on time"]

1. e4 {[%clk 0:03:00.9]} 1... c5 {[%clk 0:02:57.3]} 2. Nf3 {[%clk 0:03:00.4]}
2... d6 {[%clk 0:02:51.6]} 3. d4 {[%clk 0:02:59.6]} 3... cxd4 {[%clk 0:02:51.5]}
4. Nxd4 {[%clk 0:03:00.5]} 4... Nf6 {[%clk 0:02:51.7]} 5. Nc3 {[%clk 0:03:00.8]}
5... Nc6 {[%clk 0:02:51.3]} 6. f3 {[%clk 0:02:54.9]} 6... e5 {[%clk 0:02:49]} 7.
Nb3 {[%clk 0:02:54.4]} 7... Be7 {[%clk 0:02:48.6]} 8. Be3 {[%clk 0:02:53.9]}
8... O-O {[%clk 0:02:46.9]} 9. Qd2 {[%clk 0:02:51.6]} 9... a5 {[%clk 0:02:32.9]}
10. Bb5 {[%clk 0:02:50.2]} 10... Be6 {[%clk 0:02:31]} 11. Rd1 {[%clk 0:02:35.7]}
11... Na7 {[%clk 0:02:28]} 12. Be2 {[%clk 0:02:30]} 12... Nc8 {[%clk 0:02:15.1]}
13. Nd5 {[%clk 0:02:06.8]} 13... Bxd5 {[%clk 0:02:05.7]} 14. exd5 {[%clk
0:02:07.7]} 14... a4 {[%clk 0:01:46.9]} 15. Na1 {[%clk 0:02:07.3]} 15... Nb6
{[%clk 0:01:30.4]} 16. c4 {[%clk 0:02:06]} 16... Nbd7 {[%clk 0:01:18.7]} 17. Nc2
{[%clk 0:02:01.6]} 17... Nh5 {[%clk 0:01:15.4]} 18. O-O {[%clk 0:02:00.7]} 18...
Nf4 {[%clk 0:01:11.7]} 19. Na3 {[%clk 0:01:51]} 19... Nxe2+ {[%clk 0:01:07.6]}
20. Qxe2 {[%clk 0:01:51.9]} 20... Bg5 {[%clk 0:01:06.5]} 21. Bf2 {[%clk
0:01:49.5]} 21... Bh4 {[%clk 0:01:05.4]} 22. g3 {[%clk 0:01:40.3]} 22... Be7
{[%clk 0:01:03.6]} 23. Nb5 {[%clk 0:01:40]} 23... Re8 {[%clk 0:00:52.9]} 24. b4
{[%clk 0:01:30.1]} 24... Bf8 {[%clk 0:00:37.4]} 25. a3 {[%clk 0:01:20.6]} 25...
b6 {[%clk 0:00:34.1]} 26. Rc1 {[%clk 0:01:14.1]} 26... f5 {[%clk 0:00:32.5]} 27.
Nc3 {[%clk 0:01:09.6]} 27... Ra7 {[%clk 0:00:17.9]} 28. Qc2 {[%clk 0:01:06.5]}
28... g6 {[%clk 0:00:15.7]} 29. Nxa4 {[%clk 0:01:03.7]} 29... Qa8 {[%clk
0:00:15.3]} 30. Nxb6 {[%clk 0:01:01.5]} 30... Nxb6 {[%clk 0:00:15.4]} 31. Bxb6
{[%clk 0:01:01.7]} 31... Rxa3 {[%clk 0:00:16.3]} 32. Bf2 {[%clk 0:00:51.8]}
32... Ra2 {[%clk 0:00:15.1]} 33. Qd1 {[%clk 0:00:45.7]} 33... Qa3 {[%clk
0:00:14.6]} 34. c5 {[%clk 0:00:31.1]} 34... Qxb4 {[%clk 0:00:12.4]} 35. c6
{[%clk 0:00:31.6]} 35... Rc8 {[%clk 0:00:12]} 36. Ra1 {[%clk 0:00:23.3]} 36...
Rb2 {[%clk 0:00:09.2]} 37. Rb1 {[%clk 0:00:21]} 37... Bg7 {[%clk 0:00:07.5]} 38.
Rxb2 {[%clk 0:00:19.2]} 38... Qxb2 {[%clk 0:00:07.5]} 39. Qa1 {[%clk 0:00:08.7]}
39... Qxa1 {[%clk 0:00:06.2]} 40. Rxa1 {[%clk 0:00:09.6]} 40... e4 {[%clk
0:00:06.7]} 41. Rb1 {[%clk 0:00:09.4]} 41... exf3 {[%clk 0:00:05.2]} 42. Rb7
{[%clk 0:00:10]} 42... Bf6 {[%clk 0:00:03]} 43. Bb6 {[%clk 0:00:08.3]} 1-0

[Event "*** Titled Tuesday Blitz"]
[Site "Chess.com"]
[Date "2020.10.20"]
[Round "4"]
[White "Shuvalov"]
[Black "ftorodent"]
[Result "1-0"]
[WhiteElo "2471"]
[BlackElo "2660"]
[TimeControl "180+1"]
[EndTime "10:41:55 PDT"]
[Termination "Shuvalov won by resignation"]

1. Nf3 {[%clk 0:02:57.4]} 1... d5 {[%clk 0:02:59.3]} 2. c4 {[%clk 0:02:57.2]}
2... e6 {[%clk 0:02:57.8]} 3. g3 {[%clk 0:02:57.3]} 3... Nf6 {[%clk 0:02:57.3]}
4. Bg2 {[%clk 0:02:57.4]} 4... Be7 {[%clk 0:02:57.9]} 5. O-O {[%clk 0:02:57.2]}
5... O-O {[%clk 0:02:58.5]} 6. b3 {[%clk 0:02:57.4]} 6... b6 {[%clk 0:02:57.6]}
7. Bb2 {[%clk 0:02:57.5]} 7... Bb7 {[%clk 0:02:57.9]} 8. e3 {[%clk 0:02:57.4]}
8... c5 {[%clk 0:02:57.4]} 9. Nc3 {[%clk 0:02:56.6]} 9... a6 {[%clk 0:02:54.4]}
10. Qe2 {[%clk 0:02:55.7]} 10... d4 {[%clk 0:02:54.5]} 11. exd4 {[%clk
0:02:48.6]} 11... cxd4 {[%clk 0:02:54.6]} 12. Na4 {[%clk 0:02:35.8]} 12... d3
{[%clk 0:02:25.8]} 13. Qe3 {[%clk 0:02:31.6]} 13... b5 {[%clk 0:02:25.6]} 14.
Nb6 {[%clk 0:02:20]} 14... Ng4 {[%clk 0:01:37]} 15. Qf4 {[%clk 0:02:12]} 15...
Qxb6 {[%clk 0:01:31.3]} 16. Qxg4 {[%clk 0:02:11.5]} 16... f6 {[%clk 0:01:31.2]}
17. Rfe1 {[%clk 0:01:08.2]} 17... e5 {[%clk 0:01:12.2]} 18. Nh4 {[%clk
0:00:56.4]} 18... Bc5 {[%clk 0:00:44.4]} 19. Bxb7 {[%clk 0:00:43.3]} 19... Qxb7
{[%clk 0:00:44.4]} 20. Nf5 {[%clk 0:00:43]} 20... g6 {[%clk 0:00:39.7]} 21. b4
{[%clk 0:00:26.2]} 21... Bxb4 {[%clk 0:00:33.6]} 22. cxb5 {[%clk 0:00:26.1]}
22... a5 {[%clk 0:00:26.2]} 23. Qc4+ {[%clk 0:00:19.8]} 23... Kh8 {[%clk
0:00:24.1]} 24. Nh6 {[%clk 0:00:17.8]} 24... Qg7 {[%clk 0:00:22]} 25. Ng4 {[%clk
0:00:16.7]} 25... Nd7 {[%clk 0:00:20.2]} 26. a3 {[%clk 0:00:15.3]} 26... Be7
{[%clk 0:00:19.2]} 27. h4 {[%clk 0:00:12.7]} 27... Rfd8 {[%clk 0:00:17.6]} 28.
h5 {[%clk 0:00:12.4]} 28... Rac8 {[%clk 0:00:17]} 29. Qe6 {[%clk 0:00:12.2]}
29... Nc5 {[%clk 0:00:16.5]} 30. Qa2 {[%clk 0:00:11.6]} 30... gxh5 {[%clk
0:00:15]} 31. Nxe5 {[%clk 0:00:11.4]} 31... h4 {[%clk 0:00:12.8]} 32. Nf7+
{[%clk 0:00:10.1]} 32... Kg8 {[%clk 0:00:11.3]} 33. Nxd8+ {[%clk 0:00:10.4]}
33... Kf8 {[%clk 0:00:11.3]} 34. Ne6+ {[%clk 0:00:10.1]} 34... Nxe6 {[%clk
0:00:10.9]} 35. Qxe6 {[%clk 0:00:11]} 35... Rd8 {[%clk 0:00:10.7]} 36. g4 {[%clk
0:00:09.6]} 36... Rd6 {[%clk 0:00:09.7]} 37. Qf5 {[%clk 0:00:09.1]} 37... h5
{[%clk 0:00:09.2]} 38. Rac1 {[%clk 0:00:09]} 38... hxg4 {[%clk 0:00:08]} 39.
Rc8+ {[%clk 0:00:08.9]} 39... Bd8 {[%clk 0:00:08.2]} 40. Qe4 {[%clk 0:00:07.4]}
40... Qd7 {[%clk 0:00:05.6]} 41. Rc6 {[%clk 0:00:03.6]} 41... Rd5 {[%clk
0:00:01.8]} 42. Bxf6 {[%clk 0:00:01.4]} 42... Bxf6 {[%clk 0:00:01.9]} 43. Rxf6+
{[%clk 0:00:02.3]} 43... Kg7 {[%clk 0:00:02]} 44. Qg6+ {[%clk 0:00:02.2]} 1-0

[Event "*** Titled Tuesday Blitz"]
[Site "Chess.com"]
[Date "2020.10.20"]
[Round "4"]
[White "scandalgod"]
[Black "niki_2003"]
[Result "1-0"]
[WhiteElo "2371"]
[BlackElo "1838"]
[TimeControl "180+1"]
[EndTime "10:41:55 PDT"]
[Termination "scandalgod won by resignation"]

1. d4 {[%clk 0:02:28]} 1... Nf6 {[%clk 0:02:58.3]} 2. c4 {[%clk 0:02:26.3]} 2...
e6 {[%clk 0:02:58.3]} 3. g3 {[%clk 0:02:25.9]} 3... Bb4+ {[%clk 0:02:58.7]} 4.
Bd2 {[%clk 0:02:24.5]} 4... Qe7 {[%clk 0:02:58.9]} 5. Nf3 {[%clk 0:02:24]} 5...
O-O {[%clk 0:02:57.6]} 6. Nc3 {[%clk 0:02:24.2]} 6... Nc6 {[%clk 0:02:55.9]} 7.
Bg2 {[%clk 0:02:24.3]} 7... d5 {[%clk 0:02:55.1]} 8. O-O {[%clk 0:02:23]} 8...
dxc4 {[%clk 0:02:53.7]} 9. Rc1 {[%clk 0:02:18.5]} 9... Bxc3 {[%clk 0:02:51.9]}
10. Rxc3 {[%clk 0:02:17.8]} 10... Nd5 {[%clk 0:02:52.4]} 11. Rxc4 {[%clk
0:02:17.3]} 11... Nd8 {[%clk 0:02:48.5]} 12. e4 {[%clk 0:02:14.6]} 12... Nb6
{[%clk 0:02:46.2]} 13. Rc1 {[%clk 0:02:13.9]} 13... Bd7 {[%clk 0:02:46.1]} 14.
Rxc7 {[%clk 0:02:12.5]} 14... Qd6 {[%clk 0:02:44.9]} 15. Bf4 {[%clk 0:02:05.1]}
15... Qb4 {[%clk 0:02:43.2]} 16. Qc2 {[%clk 0:02:00.8]} 16... Nc6 {[%clk
0:02:39.4]} 17. Rd1 {[%clk 0:01:50]} 17... Rac8 {[%clk 0:02:24.7]} 18. a3 {[%clk
0:01:42.8]} 18... Qe7 {[%clk 0:02:15.5]} 19. d5 {[%clk 0:01:37.4]} 19... e5
{[%clk 0:02:06.9]} 20. d6 {[%clk 0:01:31.4]} 20... Qe6 {[%clk 0:01:48.9]} 21.
Be3 {[%clk 0:01:29.5]} 21... Rxc7 {[%clk 0:01:47]} 22. dxc7 {[%clk 0:01:27.9]}
22... Rc8 {[%clk 0:01:47.1]} 23. Qd3 {[%clk 0:01:24.4]} 23... Rxc7 {[%clk
0:01:46.3]} 24. b4 {[%clk 0:01:13.9]} 24... Nc4 {[%clk 0:01:41.5]} 25. b5 {[%clk
0:00:54.1]} 25... Nxe3 {[%clk 0:01:33.9]} 26. Qxe3 {[%clk 0:00:49.6]} 26... Na5
{[%clk 0:01:33.5]} 27. Qxa7 {[%clk 0:00:46.7]} 27... Nc4 {[%clk 0:01:24.2]} 28.
Qb8+ {[%clk 0:00:42]} 28... Rc8 {[%clk 0:01:21]} 29. Qxb7 {[%clk 0:00:42]} 29...
Nd6 {[%clk 0:01:19.5]} 30. Qd5 {[%clk 0:00:32.8]} 30... Nxb5 {[%clk 0:01:12]}
31. Qxd7 {[%clk 0:00:31.1]} 31... Qxd7 {[%clk 0:01:09.5]} 32. Rxd7 {[%clk
0:00:30.8]} 32... f6 {[%clk 0:01:05.4]} 33. Bf1 {[%clk 0:00:29.4]} 33... Nxa3
{[%clk 0:00:58.7]} 34. Nh4 {[%clk 0:00:28.1]} 34... g6 {[%clk 0:00:54.9]} 35.
Ng2 {[%clk 0:00:27.5]} 35... Nb1 {[%clk 0:00:53.8]} 36. Ne3 {[%clk 0:00:26.5]}
36... Rc1 {[%clk 0:00:49.6]} 37. Kg2 {[%clk 0:00:26.3]} 37... Nc3 {[%clk
0:00:48.6]} 38. Bc4+ {[%clk 0:00:25.6]} 38... Kf8 {[%clk 0:00:47.5]} 39. Nd5
{[%clk 0:00:24.1]} 39... Nxe4 {[%clk 0:00:47.3]} 40. Bd3 {[%clk 0:00:20.6]}
40... Nc5 {[%clk 0:00:39.9]} 41. Rd8+ {[%clk 0:00:20.7]} 41... Kf7 {[%clk
0:00:38.3]} 42. Bb5 {[%clk 0:00:20.6]} 42... Rd1 {[%clk 0:00:32.1]} 43. Bc6
{[%clk 0:00:19.5]} 43... Ne6 {[%clk 0:00:21.4]} 44. Rc8 {[%clk 0:00:18.9]} 44...
Rc1 {[%clk 0:00:19.6]} 45. Be8+ {[%clk 0:00:18.3]} 45... Kf8 {[%clk 0:00:17.5]}
46. Rxc1 {[%clk 0:00:17.4]} 46... Kxe8 {[%clk 0:00:18.4]} 47. Nc7+ {[%clk
0:00:17.4]} 47... Kd7 {[%clk 0:00:19]} 48. Nxe6 {[%clk 0:00:16.4]} 48... Kxe6
{[%clk 0:00:19.4]} 49. Rc7 {[%clk 0:00:17]} 49... Kd5 {[%clk 0:00:19.4]} 50.
Rxh7 {[%clk 0:00:17.5]} 50... f5 {[%clk 0:00:19.9]} 51. Rg7 {[%clk 0:00:17.9]}
51... e4 {[%clk 0:00:20.8]} 52. Rxg6 {[%clk 0:00:18.1]} 52... Kd4 {[%clk
0:00:21.7]} 53. Re6 {[%clk 0:00:17.8]} 1-0

[Event "*** Titled Tuesday Blitz"]
[Site "Chess.com"]
[Date "2020.10.20"]
[Round "4"]
[White "Angel_Hranitel_37"]
[Black "Witik"]
[Result "0-1"]
[WhiteElo "2508"]
[BlackElo "2769"]
[TimeControl "180+1"]
[EndTime "10:41:56 PDT"]
[Termination "Witik won by resignation"]

1. d4 {[%clk 0:03:00.6]} 1... d5 {[%clk 0:02:59.5]} 2. c4 {[%clk 0:03:00.3]}
2... e6 {[%clk 0:02:59.6]} 3. Nf3 {[%clk 0:03:00.7]} 3... c6 {[%clk 0:03:00.1]}
4. g3 {[%clk 0:03:01]} 4... Bd6 {[%clk 0:03:00]} 5. Bg2 {[%clk 0:03:01.4]} 5...
f5 {[%clk 0:03:00.5]} 6. O-O {[%clk 0:03:00.2]} 6... Nf6 {[%clk 0:03:01.1]} 7.
Bf4 {[%clk 0:03:01.1]} 7... Bxf4 {[%clk 0:02:59.8]} 8. gxf4 {[%clk 0:03:02]}
8... O-O {[%clk 0:03:00.3]} 9. e3 {[%clk 0:03:01.4]} 9... Bd7 {[%clk 0:02:56.3]}
10. Ne5 {[%clk 0:02:53.9]} 10... Be8 {[%clk 0:02:56.2]} 11. Nd2 {[%clk
0:02:52.6]} 11... Nbd7 {[%clk 0:02:55.3]} 12. Ndf3 {[%clk 0:02:52.6]} 12... Bh5
{[%clk 0:02:53.7]} 13. Qb3 {[%clk 0:02:45.4]} 13... Rb8 {[%clk 0:02:51.9]} 14.
Qa3 {[%clk 0:02:44]} 14... a6 {[%clk 0:02:35.6]} 15. Qd6 {[%clk 0:02:33.1]}
15... Nxe5 {[%clk 0:02:35.5]} 16. fxe5 {[%clk 0:02:26.8]} 16... Qxd6 {[%clk
0:02:34.1]} 17. exd6 {[%clk 0:02:27.7]} 17... Bxf3 {[%clk 0:02:30.7]} 18. Bxf3
{[%clk 0:02:27.2]} 18... dxc4 {[%clk 0:02:31.3]} 19. Rac1 {[%clk 0:02:23.5]}
19... Rfd8 {[%clk 0:02:20.8]} 20. Rxc4 {[%clk 0:02:22.9]} 20... Rxd6 {[%clk
0:02:21.2]} 21. a4 {[%clk 0:02:20.7]} 21... Re8 {[%clk 0:02:17.9]} 22. Rb4
{[%clk 0:02:01.1]} 22... Rd7 {[%clk 0:02:15.3]} 23. Rd1 {[%clk 0:01:51.5]} 23...
Kf8 {[%clk 0:02:03]} 24. Rd3 {[%clk 0:01:48]} 24... a5 {[%clk 0:01:53.1]} 25.
Rb6 {[%clk 0:01:41.6]} 25... Rc7 {[%clk 0:01:39.6]} 26. Rdb3 {[%clk 0:01:32.3]}
26... Ree7 {[%clk 0:01:39.1]} 27. Rc3 {[%clk 0:01:13.4]} 27... e5 {[%clk
0:01:33.4]} 28. dxe5 {[%clk 0:00:42.2]} 28... Nd7 {[%clk 0:01:27.3]} 29. Rbb3
{[%clk 0:00:37.3]} 29... Rxe5 {[%clk 0:01:25.8]} 30. Rc4 {[%clk 0:00:34.2]}
30... Ke7 {[%clk 0:01:24.5]} 31. Rd3 {[%clk 0:00:26.6]} 31... g6 {[%clk
0:01:19]} 32. h4 {[%clk 0:00:21.1]} 32... Nc5 {[%clk 0:01:18.7]} 33. Rd1 {[%clk
0:00:15.4]} 33... Rd7 {[%clk 0:01:18.5]} 34. Rcd4 {[%clk 0:00:10.5]} 34... Re6
{[%clk 0:01:09.3]} 35. Rxd7+ {[%clk 0:00:03.3]} 35... Nxd7 {[%clk 0:01:09.3]}
36. h5 {[%clk 0:00:04.2]} 36... Nc5 {[%clk 0:01:08.8]} 37. Rd4 {[%clk
0:00:03.4]} 37... Rd6 {[%clk 0:01:07.2]} 38. Rc4 {[%clk 0:00:03.9]} 38... Nd7
{[%clk 0:01:05.9]} 39. hxg6 {[%clk 0:00:04.1]} 39... hxg6 {[%clk 0:01:06.5]} 40.
Rh4 {[%clk 0:00:04.4]} 40... Rd2 {[%clk 0:01:04.8]} 41. Rh7+ {[%clk 0:00:04]}
41... Kd6 {[%clk 0:01:05.2]} 42. b3 {[%clk 0:00:04.3]} 42... Ne5 {[%clk
0:01:03.7]} 43. Bg2 {[%clk 0:00:02.7]} 43... b6 {[%clk 0:00:45]} 44. Bf1 {[%clk
0:00:02.5]} 44... Rb2 {[%clk 0:00:43.1]} 45. f4 {[%clk 0:00:02.6]} 45... Nf3+
{[%clk 0:00:40.8]} 46. Kh1 {[%clk 0:00:03.2]} 46... Rxb3 {[%clk 0:00:39.5]} 47.
Be2 {[%clk 0:00:03.1]} 47... Rxe3 {[%clk 0:00:38]} 48. Bxf3 {[%clk 0:00:01.6]}
48... Rxf3 {[%clk 0:00:36.6]} 49. Rg7 {[%clk 0:00:02.1]} 49... Rxf4 {[%clk
0:00:36.9]} 50. Rxg6+ {[%clk 0:00:02.6]} 50... Kc5 {[%clk 0:00:37.5]} 51. Rf6
{[%clk 0:00:03.5]} 51... Rxa4 {[%clk 0:00:35.9]} 52. Rxf5+ {[%clk 0:00:04]}
52... Kb4 {[%clk 0:00:36.3]} 53. Rf4+ {[%clk 0:00:04.9]} 53... Kb5 {[%clk
0:00:36.7]} 54. Rf3 {[%clk 0:00:05.8]} 54... c5 {[%clk 0:00:37.1]} 55. Rf5
{[%clk 0:00:06.7]} 55... Ra2 {[%clk 0:00:36.8]} 56. Rf3 {[%clk 0:00:07.6]} 56...
a4 {[%clk 0:00:36.9]} 57. Ra3 {[%clk 0:00:08.5]} 57... Rxa3 {[%clk 0:00:36.8]}
0-1

[Event "*** Titled Tuesday Blitz"]
[Site "Chess.com"]
[Date "2020.10.20"]
[Round "4"]
[White "geordie_derraugh"]
[Black "suyu28"]
[Result "1-0"]
[WhiteElo "2381"]
[BlackElo "2603"]
[TimeControl "180+1"]
[EndTime "10:41:57 PDT"]
[Termination "geordie_derraugh won on time"]

1. e4 {[%clk 0:03:00.9]} 1... e5 {[%clk 0:02:58.9]} 2. Nf3 {[%clk 0:03:00.7]}
2... Nc6 {[%clk 0:02:57.7]} 3. Bc4 {[%clk 0:03:00.5]} 3... Bc5 {[%clk
0:02:57.1]} 4. c3 {[%clk 0:02:58]} 4... Nf6 {[%clk 0:02:56.6]} 5. d3 {[%clk
0:02:58.2]} 5... O-O {[%clk 0:02:56.9]} 6. O-O {[%clk 0:02:58.1]} 6... a6 {[%clk
0:02:57.5]} 7. Bb3 {[%clk 0:02:57.7]} 7... d6 {[%clk 0:02:57.9]} 8. h3 {[%clk
0:02:57.8]} 8... h6 {[%clk 0:02:58]} 9. Nbd2 {[%clk 0:02:58.1]} 9... Re8 {[%clk
0:02:58.1]} 10. a4 {[%clk 0:02:56]} 10... Be6 {[%clk 0:02:57.6]} 11. Bc2 {[%clk
0:02:56]} 11... d5 {[%clk 0:02:56.9]} 12. exd5 {[%clk 0:02:53.8]} 12... Nxd5
{[%clk 0:02:55.4]} 13. Ne4 {[%clk 0:02:53.2]} 13... Bf8 {[%clk 0:02:55.5]} 14.
Ng3 {[%clk 0:02:52.3]} 14... g6 {[%clk 0:02:47.5]} 15. Re1 {[%clk 0:02:44.1]}
15... Bg7 {[%clk 0:02:47.5]} 16. Ne4 {[%clk 0:02:43]} 16... b6 {[%clk
0:02:32.3]} 17. Ned2 {[%clk 0:02:31.5]} 17... f5 {[%clk 0:02:29.3]} 18. Nc4
{[%clk 0:02:30.4]} 18... Bf7 {[%clk 0:02:29.6]} 19. Bd2 {[%clk 0:02:22.4]} 19...
Qd7 {[%clk 0:02:29.4]} 20. Ne3 {[%clk 0:02:12.7]} 20... Nf4 {[%clk 0:01:50.1]}
21. d4 {[%clk 0:02:12.6]} 21... e4 {[%clk 0:01:33.8]} 22. Nh2 {[%clk 0:01:59.1]}
22... Nd3 {[%clk 0:01:11.3]} 23. Bxd3 {[%clk 0:01:49.3]} 23... exd3 {[%clk
0:01:12.2]} 24. Qb1 {[%clk 0:01:48.2]} 24... f4 {[%clk 0:01:12.1]} 25. Neg4
{[%clk 0:01:43.7]} 25... h5 {[%clk 0:01:02]} 26. Ne5 {[%clk 0:01:37.7]} 26...
Nxe5 {[%clk 0:00:58.3]} 27. dxe5 {[%clk 0:01:38.6]} 27... Bb3 {[%clk 0:00:32.2]}
28. Nf3 {[%clk 0:01:24.5]} 28... Bc2 {[%clk 0:00:22.6]} 29. Qa2+ {[%clk
0:01:20.3]} 29... Kh8 {[%clk 0:00:18.2]} 30. Ng5 {[%clk 0:01:12.1]} 30... Rf8
{[%clk 0:00:14.8]} 31. e6 {[%clk 0:01:07.3]} 31... Qe7 {[%clk 0:00:14.3]} 32.
Nf7+ {[%clk 0:01:05.3]} 32... Kh7 {[%clk 0:00:14.5]} 33. Bxf4 {[%clk 0:01:05.2]}
33... Rae8 {[%clk 0:00:13.9]} 34. Bg5 {[%clk 0:00:45.3]} 34... Bf6 {[%clk
0:00:09.2]} 35. Qd5 {[%clk 0:00:34.7]} 35... Bxg5 {[%clk 0:00:02.6]} 36. Nxg5+
{[%clk 0:00:28.8]} 36... Kg8 {[%clk 0:00:03.1]} 37. h4 {[%clk 0:00:25.1]} 37...
Rd8 {[%clk 0:00:02.9]} 38. Qe4 {[%clk 0:00:25.4]} 38... Rf5 {[%clk 0:00:02.3]}
39. Qe3 {[%clk 0:00:15]} 39... d2 {[%clk 0:00:01.8]} 40. Red1 {[%clk 0:00:15.7]}
40... Bxd1 {[%clk 0:00:02.2]} 41. Rxd1 {[%clk 0:00:16.5]} 41... Rd6 {[%clk
0:00:02]} 42. Rxd2 {[%clk 0:00:16.2]} 42... Rxd2 {[%clk 0:00:02.6]} 43. Qxd2
{[%clk 0:00:17.1]} 43... Kg7 {[%clk 0:00:02.9]} 44. Qd4+ {[%clk 0:00:17.2]}
44... Kg8 {[%clk 0:00:03]} 45. Qd3 {[%clk 0:00:13.9]} 45... a5 {[%clk
0:00:02.5]} 46. Qa6 {[%clk 0:00:13.6]} 46... Rf8 {[%clk 0:00:02]} 47. Qc4 {[%clk
0:00:13.5]} 47... Rd8 {[%clk 0:00:01.1]} 48. Qe4 {[%clk 0:00:13]} 1-0